Cogmind - Beta 16 @@@ ROGUE MODE // 2026.02.03 @ 20:21:28 Player: Ly0ko Result: Self-destructed Performance ------------- Evolutions (1) 500 Regions Visited (3) 600 Robots Destroyed (21) 105 Value Destroyed (497) 497 Prototype IDs (0) 0 Alien Tech Used (0) 0 Bonus (0) 0 TOTAL SCORE: 1702 Bonus ------- None Cogmind --------- Core Integrity 90/400 Matter 163/300 Energy 78/250 System Corruption 0% Temperature Cool (0) Movement Treading (160) Location -9/Mines Parts ------- > --- POWER (1) -------- Ion Engine > --- PROPULSION (4) --- Light Treads Light Treads > --- UTILITY (2) ------ Small Storage Unit > --- WEAPON (2) ------- (None) > --- INVENTORY (8) ---- Light Ion Engine Improved Ion Engine Improved Light Cannon Peak State ------------ > --- POWER ------------ Light Ion Engine > --- PROPULSION ------- Aluminum Leg > --- UTILITY ---------- Heat Sink Small Storage Unit > --- WEAPON ----------- Improved Light Cannon Rocket Launcher > --- INVENTORY -------- Ion Engine Light Ion Engine Light Treads Light Treads Light Assault Rifle Improved Light Cannon [Rating: 8] Favorites ----------- Power Light Ion Engine Engine Light Ion Engine Propulsion Aluminum Leg Treads Light Treads Leg Aluminum Leg Utility Small Storage Unit Device Heat Sink Storage Small Storage Unit Weapon Light Assault Rifle Ballistic Gun Light Assault Rifle Ballistic Cannon Improved Light Cannon Launcher Rocket Launcher Build | -11 -10 -9 -9 ------- Run | Yrd Mat Mat Min Slots Evolved 2 | . . 2 . Power . | . . . . Propulsion 2 | . . 2 . Utility . | . . . . Weapon . | . . . . Parts Attached 16 | 7 1 4 4 Power 2 | 1 . . 1 Engine 2 | 1 . . 1 Core . | . . . . Reactor . | . . . . Propulsion 4 | 2 . . 2 Treads 2 | . . . 2 Leg 2 | 2 . . . Wheel . | . . . . Hover . | . . . . Flight . | . . . . Utility 3 | 1 1 1 . Device 2 | . 1 1 . Storage 1 | 1 . . . Processor . | . . . . Hackware . | . . . . Protection . | . . . . Artifact . | . . . . Weapon 7 | 3 . 3 1 Energy Gun . | . . . . Energy Cannon . | . . . . Ballistic Gun 3 | 3 . . . Ballistic Cannon 2 | . . 1 1 Launcher 2 | . . 2 . Special Weapon . | . . . . Impact Weapon . | . . . . Slashing Weapon . | . . . . Piercing Weapon . | . . . . Special Melee Weapon . | . . . . Unidentified Prototypes . | . . . . Parts Lost 9 | . . 3 6 Power 1 | . . . 1 Propulsion 2 | . . 1 1 Utility 2 | . . 1 1 Weapon 4 | . . 1 3 Highest Loss Streak 5 | . . 2 5 To Critical Strikes . | . . . . Average Backups 6 | 3 5 6 6 Power 1 | . 1 2 2 Propulsion 1 | 1 2 2 1 Utility . | . . . . Weapon 1 | . 1 2 1 Tool/Special . | . . . . Unused Backups 2 | . . . 2 Power 2 | . . . 2 Propulsion . | . . . . Utility . | . . . . Weapon . | . . . . Tool/Special . | . . . . Average Slot Usage (%) 74 | . 97 69 57 Engine 11 | . 14 11 10 Leg 16 | . 28 14 5 Device 10 | . 11 10 10 Storage 11 | . 14 11 11 Ballistic Gun 16 | . 28 15 . Ballistic Cannon 4 | . . 4 11 Launcher 2 | . . 1 10 Peak Build Rating 8 | 6 7 8 8 Average Rating 6 | 4 6 6 7 On Entrance 5 | . 6 7 8 Avg Prop Armor Cover (%) . | . . . . Naked Turns . | . . . . Heaviest Build 17 | 11 12 17 17 Greatest Support 20 | 20 20 20 10 Greatest Overweight (x) 5 | 3 . 1 5 Average Overweight (x) . | . . . 2 Largest Inventory Capacity 8 | 8 8 8 8 Average Capacity 7 | 7 8 8 8 Most Carried 8 | 4 7 8 7 Average Carried 6 | 3 5 6 6 Final Capacity 8 | 8 8 8 8 Final Carried 7 | 4 7 7 3 Class Distribution -------------------- 100% | Mutant Dominant Class ---------------- Mutant | -10/Materials Mutant | -9/Materials Mutant | -9/Mines Resources | -11 -10 -9 -9 ----------- Run | Yrd Mat Mat Min Matter Collected 463 | 156 192 115 . Remotely . | . . . . Salvage Created 603 | . 219 323 61 Parts 40 | . 9 31 . Haulers Intercepted . | . . . . Recyclers Shooed 1 | . . 1 . Parts Field Recycled . | . . . . Retrieved Matter . | . . . . Parts Self-Destructed . | . . . . Prevented . | . . . . Parts Restored . | . . . . Kills | -11 -10 -9 -9 ------- Run | Yrd Mat Mat Min Combat Hostiles Destroyed 26 | . 5 14 7 Guns 11 | . 5 6 . Cannons 4 | . . 1 3 AOE 11 | . . 7 4 Classes Destroyed 6 | . 1 3 2 Recycler 1 | . . 1 . Swarmer 11 | . . 11 . Grunt 5 | . 5 . . Sentry 3 | . . 3 . Demolisher 1 | . . . 1 Assembled 6 | . . . 6 Best Kill Streak 6 | . 3 6 6 Combat Bots Only 6 | . 3 6 6 Max Kills in Single Turn 3 | . 1 3 3 Gunslinging . | . . . . Exploded 2 | . . 2 2 Melee . | . . . . Uniques/NPCs Destroyed . | . . . . Combat | -11 -10 -9 -9 -------- Run | Yrd Mat Mat Min Hostile Shots Fired 117 | . 25 53 39 Missed 33 | . 4 19 10 Hits 84 | . 21 34 29 Melee 9 | . . . 9 Projectile 75 | . 21 34 20 AOE 1 | . . . 1 Damage Taken 1397 | . 264 459 674 Core 372 | . 62 85 225 Absorbed by Shields . | . . . . Core Remaining (%) 87 | 100 75 . . Volleys Fired 46 | . 19 17 10 Largest 2 | . 2 2 2 Hottest 66 | . 40 66 66 Shots Fired 85 | . 38 29 18 Gun 63 | . 38 21 4 Cannon 13 | . . 3 10 Launcher 9 | . . 5 4 Special . | . . . . Kinetic 76 | . 38 24 14 Thermal . | . . . . Explosive 9 | . . 5 4 Electromagnetic . | . . . . Robot Hit Streak 10 | . 10 6 7 Robot Miss Streak 3 | . 2 3 2 Penetration Max . | . . . . Secondary Targets 1 | . 1 . . Max Gunslinging Chain 1 | . 1 . . Shots Hit Robots 56 | . 26 19 11 Core Hits 44 | . 11 19 14 Critical Kills 1 | . 1 . . Critical Parts Destroyed . | . . . . Critical Strikes 1 | . 1 . . Destroy 1 | . 1 . . Melee Attacks . | . . . . Impact . | . . . . Slashing . | . . . . Piercing . | . . . . Sneak Attacks . | . . . . Combat Hostiles . | . . . . Follow-up Attacks . | . . . . Damage Inflicted 1386 | 2 273 615 496 Guns 480 | . 273 184 23 Cannons 172 | . . 24 148 Explosions 723 | . . 398 325 Melee . | . . . . Ramming 11 | 2 . 9 . Kinetic 652 | . 273 208 171 Thermal 117 | . . . 117 Explosive 606 | . . 398 208 Electromagnetic . | . . . . Impact . | . . . . Slashing . | . . . . Piercing . | . . . . Highest Corruption . | . . . . Average Corruption . | . . . . Corruption Purged . | . . . . Corruption Blocked . | . . . . Overload Shots . | . . . . Overflow Damage 23 | . . . 23 Projectiles . | . . . . Explosions 23 | . . . 23 Melee . | . . . . Knockbacks 6 | . . . 6 Impact . | . . . . Kinetic 5 | . . . 5 Secondary 1 | . . . 1 Self-Inflicted Damage 195 | . . 108 87 Shots 5 | . . 3 2 Rammed . | . . . . Targets Rammed 4 | 1 . 3 . Kicked 4 | 1 . 3 . Crushed . | . . . . Highest Temperature 18 | . 18 . . Average Temperature 7 | . 7 . . Received Heat Transfer 201 | . 147 54 . Siege Activations . | . . . . Martial Activations . | . . . . Shielding Activations . | . . . . Robots Disrupted . | . . . . Combat Hostiles . | . . . . Robots Corrupted . | . . . . Combat Hostiles . | . . . . Parts Fried . | . . . . Impact Corruptions . | . . . . Robots Melted . | . . . . Combat Hostiles . | . . . . Parts Melted . | . . . . Heat Transferred 100 | . . . 100 Parts Sabotaged . | . . . . Parts Stolen . | . . . . Parts Stripped . | . . . . Power Chain Reactions . | . . . . Alert | -11 -10 -9 -9 ------- Run | Yrd Mat Mat Min Maximum Alert Level . | . . . . Low Security (%) 100 | 100 100 100 100 Level 1 . | . . . . Level 2 . | . . . . Level 3 . | . . . . Level 4 . | . . . . Level 5 . | . . . . High Security . | . . . . Max Security . | . . . . Peak Influence 168 | . 80 168 46 Initial 43 | . . 25 43 Average 51 | . 27 79 24 Influence Increases 635 | . 160 383 92 Destroy 0b10 Robot/C 400 | . 100 280 20 Destroy 0b10 Robot/NC 5 | . . 5 . Destroy Leader 90 | . 30 60 . Disable Machine 15 | . . . 15 Destroy Structure 80 | . . 38 42 Lose Combat Pursuer 45 | . 30 . 15 Influence Decreases 635 | . 100 332 203 Entered New Map 103 | . . 35 68 Time Decay 467 | . 100 267 100 Lost Part 65 | . . 30 35 Squads Dispatched 2 | . 2 . . Investigation 1 | . 1 . . Extermination . | . . . . Reinforcement 1 | . 1 . . Assault . | . . . . Garrison . | . . . . Intercept . | . . . . Searches Triggered . | . . . . Construction Impeded . | . . . . Haulers Reinforced . | . . . . Active Scanning Responses . | . . . . Cargo Convoy Interrupts . | . . . . Stealth | -11 -10 -9 -9 --------- Run | Yrd Mat Mat Min Distress Signals 1 | . . . 1 Communications Jammed . | . . . . Distress Signals . | . . . . Times Spotted 34 | . 7 16 11 Peak Tracking Total 4 | . 3 4 4 Tactical Retreats 3 | . 2 . 1 Traps | -11 -10 -9 -9 ------- Run | Yrd Mat Mat Min Traps Triggered 1 | . 1 . . Indirectly . | . . . . Trap Hack Attempts . | . . . . Triggered . | . . . . Disarmed . | . . . . Reprogrammed . | . . . . Reused . | . . . . Traps Extracted . | . . . . Installed . | . . . . Triggered . | . . . . Machines | -11 -10 -9 -9 ---------- Run | Yrd Mat Mat Min Machines Disabled 1 | . . . 1 Max in Single Turn 1 | . . . 1 Machines Repaired . | . . . . Machines Dismantled . | . . . . Machines Sabotaged . | . . . . Overloaded Fab Kills . | . . . . Hacking | -11 -10 -9 -9 --------- Run | Yrd Mat Mat Min Machines Accessed . | . . . . Terminals . | . . . . Fabricators . | . . . . Repair Stations . | . . . . Recycling Units . | . . . . Scanalyzers . | . . . . Garrison Access . | . . . . Total Hacks . | . . . . Successful . | . . . . Failed . | . . . . Catastrophic . | . . . . Database Lockouts . | . . . . Manual . | . . . . Terminals . | . . . . Fabricators . | . . . . Repair Stations . | . . . . Recycling Units . | . . . . Scanalyzers . | . . . . Garrison Access . | . . . . Terminal Hacks . | . . . . Fabricator Hacks . | . . . . Repair Station Hacks . | . . . . Recycling Unit Hacks . | . . . . Scanalyzer . | . . . . Garrison Access Hacks . | . . . . Unauthorized Hacks . | . . . . Terminals . | . . . . Fabricators . | . . . . Repair Stations . | . . . . Recycling Units . | . . . . Scanalyzers . | . . . . Garrison Access . | . . . . Data Cores Recovered . | . . . . Used . | . . . . Hacking Detections . | . . . . Full Trace Events . | . . . . Feedback Events . | . . . . Feedback Blocked . | . . . . Robot Schematics Acquired . | . . . . Robots Built . | . . . . Authchips . | . . . . Time . | . . . . Total Robot Build Rating . | . . . . Part Schematics Acquired . | . . . . Parts Built . | . . . . Authchips . | . . . . Time . | . . . . Total Part Build Rating . | . . . . Part Studies Acquired . | . . . . Parts Repaired . | . . . . Time . | . . . . Parts Recycled . | . . . . Recycled Matter . | . . . . Retrieved Matter . | . . . . Retrieved Components . | . . . . Parts Scanalyzed . | . . . . Part Schematics Acquired . | . . . . Parts Damaged . | . . . . Bothacking | -11 -10 -9 -9 ------------ Run | Yrd Mat Mat Min Used RIF Installer . | . . . . Robots Hacked . | . . . . Non-combat . | . . . . Combat . | . . . . Robot Hacks Applied . | . . . . Relay Couplers Released . | . . . . Fabnet Peak Effective % . | . . . . Robots Rewired . | . . . . Allies Hacked . | . . . . Hacks Repelled . | . . . . Allies | -11 -10 -9 -9 -------- Run | Yrd Mat Mat Min Total Allies . | . . . . Largest Group . | . . . . Highest-Rated Group . | . . . . Highest-Rated Ally . | . . . . Total Orders . | . . . . Ally Attacks . | . . . . Total Damage . | . . . . Kills . | . . . . Allies Corrupted . | . . . . Allies Melted . | . . . . Intel | -11 -10 -9 -9 ------- Run | Yrd Mat Mat Min Active Infowar (turns) 447 | . 280 167 . Seismic 447 | . 280 167 . Robot Analysis Total . | . . . . Derelict Logs Recovered . | . . . . Drone Launches . | . . . . Drone Recoveries . | . . . . Exploration | -11 -10 -9 -9 ------------- Run | Yrd Mat Mat Min Turns Passed 1298 | 89 325 671 213 Spaces Moved 693 | 58 195 362 78 Core 41 | 12 . . 29 Treads . | . . . . Legs 652 | 46 195 362 49 Wheels . | . . . . Hover . | . . . . Flight . | . . . . Fastest Speed 50 | 50 120 120 190 Average Speed 156 | 126 120 165 230 Slowest Speed 300 | 200 120 190 300 Overloaded Moves . | . . . . Propulsion Burnouts . | . . . . Robots Hopped . | . . . . Potential Cave-ins . | . . . . Cave-ins Triggered . | . . . . Exploration Rate (%) 17 | 4 22 23 20 Regions Visited 3 Branch Regions 1 Pre-discovered Areas . | . . . . Known Exits Taken . | . . . . Unknown Exits Taken 3 | 1 1 1 . Scrap Searched . | . . . . Spaces Dug . | . . . . Terrain Destroyed 95 | . . 44 51 Melee . | . . . . Projectile 1 | . . . 1 AOE 94 | . . 44 50 Terrain Rammed . | . . . . Walls Destroyed . | . . . . Machines Disabled . | . . . . Actions | -11 -10 -9 -9 --------- Run | Yrd Mat Mat Min Total 819 | 69 251 406 93 Wait 48 | . 34 14 . Move 690 | 57 194 361 78 Hop . | . . . . Pick Up 11 | 4 3 4 . Fast Attach 7 | 6 1 . . Attach 7 | . . 3 4 Detach . | . . . . Swap 4 | 1 . 2 1 Drop 2 | . . 2 . Fire 46 | . 19 17 10 Melee . | . . . . Ram . | . . . . Kick 4 | 1 . 3 . Crush . | . . . . Escape Stasis . | . . . . Rewire . | . . . . Trap . | . . . . Miscellaneous . | . . . . Route ------- -11/Scrapyard -10/Materials -9/Materials -9/Mines History --------- Turn | Location | Event 19 | -11/Scrapyard | Discovered new exit (range 16) 90 | -11/Scrapyard | Entered Materials 308 | -10/Materials | Build established: Mutant 396 | -10/Materials | Discovered new exit (range 16) 415 | -10/Materials | Entered another Materials area 415 | -9/Materials | Evolved 2 slots: Propulsion x2 1050 | -9/Materials | Discovered new exit (range 15) 1086 | -9/Materials | Entered Mines 1139 | -9/Mines | Assembled infested the area 1144 | -9/Mines | Assisted by a Guerilla fighting off Assembled 1270 | -9/Mines | Core integrity fell below 50% 1299 | -9/Mines | Self-destructed Last Messages --------------- Aluminum Leg destroyed. Plasma Injector explodes. Destroyed Mni. Grenade Launcher. D-53 Grenadier destroyed. as-15013 knocked back. as-76944 destroyed. as-15013 destroyed. as-46207 destroyed. Lgt. Ion Engine destroyed. as-78151 destroyed. as-20720 knocked back. as-20720 destroyed. Rocket Launcher destroyed. Destroyed Rocket Launcher. Heat Sink destroyed. as-17827 knocked back. as-21915 destroyed. Lgt. Assault Rifle destroyed. as-74241 knocked back. Imp. Light Cannon destroyed. Map ----- +----------------------------------------------------+ | ??????????????????????????????????????????????? | | ????????????????????????????????????????????????# | | ?????????????????????????????????????????????????# | | ?????????????????????????????????????????????????# | | ?????????????????????????????????????????????????# | | ?????????????????????????????????????????????????? | | ?????????????????????????????????????????????????? | | ?????????????????????????????????????????????????? | | ????????????????????????????#####????????????????? | | ??????????????????????????### ???????????????# | | ?????????????????????????## ???????????????# | | ?????????????????????????# ???????????????# | | ?????????????????????????? ???????????????# | | ???????????????????????????? #??????##??????# | | ??????????????????????????????# ###### #####??# | | ???????????????????????????????# ##?# | | ????????????????????????????????# #?# | | ?????????????????????????????????# ##? | | ?????????????????????????????????## # ## | | ??????????????????????????????????# ### # # | | ??????????????????????????????????# #?#### | | ????????????????????????###???????# #????? | | ?????????????????????#### ###?????# #?????# | | ?????????????????????# #%###???# #?????# | | ?????????????????????# ##### #?????# # | | ?????????????????????# @%% #?????# # | | ?????????????????????# aa ########?????## % | | ?????????????????????# #?????????????###" ## | | ???????????????????? # ??????????????# #? | | ?????????????????? """ ""??????????? #? | | ?????????????????# a """ """????????? #? | | ?????????????????# ### """="""???????? #####? | | ?????????????????#### ???# %= ??????? ?????? | | ????????????????????# ????#####[##??????# ??????? | | ????????????????????#???????????#??????# ???????? | | ???????????????????????????????????????## ???????? | | ????????????????????????????????????????#????????? | | ?????????????????????????????????????????????????? | | ?????????????????????????????????????????????????? | | ?????????????????????????????????????????????????? | | ?????????????????????????????????????????????????? | | ?????????????????????????????????????????????????? | | ?????????????????????????????????????????????????? | | ?????????????????????????????????????????????????? | | ?????????????????????????????????????????????????? | | ?????????????????????????????????????????????????? | | ?????????????????????????????????????????????????? | | ?????????????????????????????????????????????????? | | ?????????????????????????????????????????????????? | | ?????????????????????????????????????????????????? | +----------------------------------------------------+ Best States ------------- Heat Dissipation 38 Energy Generation 10 Energy Capacity 125 Matter Stores 300 Matter Capacity 300 Sight Range 16 Terrain Scan Density 10 Evasion (%) 55 Item Schematics ----------------- None Robot Schematics ------------------ None Fabricated ------------ Nothing Repaired ---------- Nothing Studied --------- None Alien Tech Used ----------------- None Achievements -------------- None Challenges ------------ None Game ------ Seed DispersalProtonAutogun Manual? 0 Play Time 00:10:38 Cumulative 2.8 hours Start 2026.02.03 @ 20:12:17 End 2026.02.03 @ 20:21:28 Sessions 1 Manual Loads 0 Difficulty Rogue Special Mode None Game No. 12 Rogue 9 Adventurer 0 Explorer 3 Win Type - Total 0 Types 0/0/0/0/0/0/0/0/0/0 Lore% 1 Gallery% 6 Achievement% 9 Wizard Run 0 Options --------- Layout 0 ASCII 0 Keyboard 0 Movement Arrows Keybinds 0 Fullscreen 1 Font 24/Smallcaps Map View 76x50 Zoom Use 0% Tactical HUD 0 Map Filters NONE Filters NONE Steam 1 RUN: e3b6ab1c-61c8-49cb-ac1c-9011cb488367